bitfinex-derivatives/quotes_SOLF0:USTF0_20241010
["timestamp","ask_amount","ask_price","bid_price","bid_amount"]
[1728569857748,0.12502,137.69,137.67,3.6351]
[1728569858057,0.12502,137.69,137.64,1.3326]
[1728569858353,0.12502,137.69,137.68,3.635]
[1728569867144,6.90502,137.75,137.67,27.95]
[1728569867353,0.12502,137.75,137.67,27.95]
[1728569867544,0.12502,137.75,137.69,27.95]
[1728569867752,0.12502,137.75,137.74,31.5834]
[1728569868055,0.12502,137.81,137.74,34.73]
[1728569868254,0.12502,137.81,137.79,3.6319]
[1728569868751,0.12502,137.81,137.76,27.95]
[1728569869056,0.12502,137.81,137.79,3.632]
[1728569869258,0.12502,137.81,137.76,27.95]
[1728569869863,0.12502,137.81,137.75,1.3874]
[1728569869864,3.6321,137.79,137.75,1.3874]
[1728569870165,0.12502,137.81,137.75,1.3874]
[1728569870465,0.12502,137.81,137.78,3.6323]
[1728569871163,0.12502,137.81,137.79,3.632]
[1728569871564,3.75672,137.81,137.75,1.3874]
[1728569872165,3.75672,137.81,137.78,3.6322]
[1728569872365,3.6319,137.8,137.75,1.3874]
[1728569872555,0.12502,137.81,137.75,1.3874]
[1728569872759,0.12502,137.81,137.77,3.6326]
[1728569873064,3.632,137.8,137.77,3.6326]
[1728569873361,0.12502,137.81,137.78,3.6322]
[1728569873565,3.75672,137.81,137.78,3.6322]
[1728569874362,0.12502,137.81,137.75,1.3874]
[1728569874565,0.12502,137.81,137.76,27.95]
[1728569875169,0.12502,137.81,137.75,1.3874]
[1728569875464,3.6321,137.8,137.75,1.3874]
[1728569875655,0.12502,137.81,137.75,1.3874]
[1728569875860,3.6328,137.77,137.75,1.3874]
[1728569876065,3.6328,137.77,137.74,3.6334]
[1728569876270,6.78,137.8,137.71,2.8101]
[1728569876463,3.6333,137.75,137.72,3.6337]
[1728569876663,3.58703773,137.77,137.71,9.5901]
[1728569876863,2.8002,137.79,137.71,9.5901]
[1728569877158,2.8002,137.79,137.71,1.3635]
[1728569877358,30.7502,137.79,137.71,1.3635]
[1728569877562,3.6333,137.75,137.72,3.6338]
[1728569877763,3.59139622,137.74,137.69,0.12502]
[1728569877957,3.59393867,137.73,137.69,0.12502]
[1728569878161,34.73,137.76,137.69,0.12502]
[1728569878464,27.95,137.74,137.69,0.12502]
[1728569878963,3.6342,137.72,137.69,0.12502]
[1728569879265,10.4142,137.72,137.69,0.12502]
[1728569879864,10.4142,137.72,137.69,3.75962]
[1728569880070,3.6339,137.73,137.69,0.12502]
[1728569880273,6.78,137.75,137.69,3.75972]
[1728569880572,3.6339,137.73,137.69,3.75972]
[1728569880762,6.78,137.75,137.69,3.75972]
[1728569881165,3.6341,137.72,137.69,3.75972]
[1728569881565,6.78,137.74,137.7,3.6344]
[1728569881771,3.6337,137.73,137.7,3.6344]
[1728569882671,3.6345,137.7,137.69,0.12502]
[1728569882976,6.78,137.74,137.69,0.12502]
[1728569883660,3.6344,137.71,137.69,0.12502]
[1728569883864,6.78,137.74,137.69,0.12502]
[1728569884062,10.37393867,137.76,137.69,0.12502]
[1728569884271,2.8002,137.79,137.69,0.12502]
[1728569884466,2.8002,137.79,137.71,27.95]
[1728569884467,9.5802,137.79,137.71,27.95]
[1728569884664,6.78,137.79,137.73,27.95]
[1728569884871,0.12502,137.81,137.74,1.4496]
[1728569885072,0.12502,137.81,137.7,27.95]
[1728569885267,3.6333,137.75,137.72,3.6337]
[1728569885465,6.78,137.78,137.7,8.2296]
[1728569885771,27.95,137.77,137.69,0.12502]
[1728569885973,27.95,137.73,137.69,0.12502]
[1728569886172,6.78,137.72,137.69,0.12502]
[1728569886371,27.95,137.71,137.63,0.12502]
[1728569886572,31.53714679,137.71,137.63,0.12502]
[1728569886777,3.6361,137.64,137.63,0.12502]
[1728569887079,3.6361,137.64,137.53,7.2777]
[1728569887080,27.95,137.66,137.57,0.12502]
[1728569887291,3.6366,137.62,137.57,0.12502]
[1728569887468,6.78,137.63,137.57,0.12502]
[1728569887865,3.70051691,137.62,137.57,0.12502]
[1728569888575,3.6372,137.6,137.57,0.12502]
[1728569888780,3.70051691,137.62,137.57,0.12502]
[1728569889287,3.6373,137.6,137.57,0.12502]
[1728569889581,3.70051691,137.62,137.57,0.12502]
[1728569889980,52.21,137.63,137.57,0.12502]
[1728569890485,55.8497025,137.63,137.57,0.12502]
[1728569890875,49.0697025,137.63,137.57,0.12502]
[1728569891088,6.68,137.64,137.57,0.12502]
[1728569891478,6.68,137.64,137.57,3.76282]
[1728569891479,3.6371,137.61,137.57,3.76282]
[1728569891677,6.68,137.64,137.57,0.12502]
[1728569891884,3.6367,137.62,137.58,3.6375]
[1728569892083,3.6883733,137.63,137.57,0.12502]
[1728569892680,3.6367,137.62,137.58,3.6375]
[1728569893188,3.6883733,137.63,137.57,0.12502]
[1728569894684,3.6369,137.61,137.58,3.6375]
[1728569894992,8.0364,137.65,137.57,0.12502]
[1728569895377,8.0364,137.65,137.63,3.6363]
[1728569895684,8.0364,137.65,137.57,0.12502]
[1728569895881,11.6722,137.65,137.62,3.6364]
[1728569896077,8.0364,137.65,137.62,3.6364]
[1728569896280,1.3564,137.65,137.62,3.6364]
[1728569896484,8.0364,137.65,137.63,3.6363]
[1728569896791,6.68,137.65,137.6,45.43]
[1728569897085,156.36717091,137.68,137.6,55.71680087]
[1728569897086,77.90717091,137.68,137.6,55.71680087]
[1728569897286,77.90717091,137.68,137.61,1.354]
[1728569897486,1.58132,137.69,137.62,45.43]
[1728569897889,0.12502,137.69,137.62,45.43]
[1728569898496,0.12502,137.69,137.64,45.43]
[1728569898688,0.12502,137.69,137.67,45.43]
[1728569898887,0.12502,137.69,137.68,3.635]
[1728569899693,0.12502,137.69,137.68,5.0838]
[1728569900291,3.75832,137.75,137.68,1.4488]
[1728569900492,0.12502,137.75,137.68,1.4488]
[1728569900890,0.12502,137.75,137.72,3.6338]
[1728569901201,3.75822,137.75,137.72,3.6338]
[1728569901694,3.6337,137.73,137.7,3.6343]
[1728569901985,45.55502,137.75,137.65,6.68]
[1728569902291,45.55502,137.75,137.68,3.6348]
[1728569902591,45.55502,137.75,137.65,6.68]
[1728569902790,3.6346,137.7,137.66,3.6353]
[1728569902988,3.6346,137.7,137.65,6.68]
[1728569903188,6.68,137.71,137.65,6.68]
[1728569903381,0.12502,137.75,137.67,45.43]
[1728569903685,0.12502,137.75,137.69,45.43]
[1728569903878,0.12502,137.75,137.72,3.6338]
[1728569904486,0.12502,137.75,137.73,3.6336]
[1728569904684,0.12502,137.75,137.69,52.11]
[1728569904883,0.12502,137.75,137.7,1.3853]
[1728569905188,0.12502,137.75,137.74,3.6334]
[1728569905383,0.12502,137.75,137.71,1.3806]
[1728569906791,0.12502,137.75,137.73,3.6335]
[1728569907186,3.75832,137.75,137.72,3.6339]
[1728569907694,0.12502,137.75,137.71,1.3806]
[1728569908293,0.12502,137.75,137.74,3.6334]
[1728569910387,0.12502,137.75,137.73,3.6336]
[1728569910600,0.12502,137.75,137.72,6.68]
[1728569910987,0.12502,137.75,137.74,3.6334]
[1728569912892,3.75662,137.81,137.74,27.92]
[1728569913490,3.75662,137.81,137.78,3.6322]
[1728569913694,0.12502,137.81,137.74,27.92]
[1728569913890,0.12502,137.81,137.79,3.632]
[1728569914194,0.12502,137.81,137.75,1.3907]
[1728569914195,0.12502,137.81,137.76,34.6]
[1728569915089,0.12502,137.81,137.79,3.6319]
[1728569915292,0.12502,137.81,137.76,6.68]
[1728569915695,0.12502,137.81,137.79,3.6321]
[1728569916500,0.12502,137.81,137.76,6.68]
[1728569916802,0.12502,137.81,137.8,3.6318]
[1728569918396,3.75662,137.81,137.77,3.6325]
[1728569918599,0.12502,137.81,137.76,8.1273]
[1728569918994,0.12502,137.81,137.8,3.6318]
[1728569923306,0.12502,137.81,137.75,1.3907]
[1728569923505,0.12502,137.81,137.75,8.0307]
[1728569923803,3.6323,137.79,137.75,8.0307]
[1728569923996,0.12502,137.81,137.75,8.0307]
[1728569924700,3.632,137.8,137.77,3.6324]
[1728569924902,0.12502,137.81,137.75,8.0307]
[1728569925108,3.75682,137.81,137.78,3.6322]
[1728569925402,0.12502,137.81,137.78,3.6322]
[1728569925800,3.75672,137.81,137.78,3.6322]
[1728569926101,0.12502,137.81,137.78,3.6322]
[1728569926792,3.6323,137.79,137.72,1.4169]
[1728569927002,3.6323,137.79,137.73,34.56]
[1728569928001,3.75672,137.81,137.75,27.92]
[1728569928504,3.75672,137.81,137.78,3.6322]
[1728569931404,0.12502,137.81,137.75,27.92]
[1728569931794,0.12502,137.81,137.73,34.56]
[1728569931993,3.6322,137.79,137.77,3.6326]
[1728569932199,0.12502,137.81,137.73,34.56]
[1728569933103,3.6324,137.78,137.76,3.6329]
[1728569933398,0.12502,137.81,137.76,3.6329]
[1728569933606,3.6325,137.78,137.76,3.6329]
[1728569934302,3.6323,137.79,137.76,3.6329]
[1728569934503,28.04502,137.81,137.71,1.3806]
[1728569934708,3.6335,137.74,137.71,1.3806]
[1728569934900,3.58875099,137.76,137.71,1.3806]
[1728569935102,6.64,137.77,137.73,3.6335]
[1728569935297,3.6331,137.76,137.73,3.6335]
[1728569935495,3.5502482,137.76,137.73,3.6335]
[1728569935896,3.6332,137.75,137.71,1.3806]
[1728569936898,3.6332,137.75,137.72,3.6339]
[1728569937096,3.5502482,137.76,137.71,1.3806]
[1728569937299,3.6343,137.71,137.69,0.12502]
[1728569937697,32.83959618,137.76,137.69,0.12502]
[1728569938096,32.83959618,137.76,137.69,3.75962]
[1728569938303,3.6341,137.72,137.69,3.75962]
[1728569939413,32.83959618,137.76,137.69,0.12502]
[1728569939612,6.64,137.73,137.69,0.12502]
[1728569939815,27.92,137.72,137.69,0.12502]
[1728569940004,3.6345,137.7,137.69,0.12502]
[1728569940508,3.6358,137.66,137.63,3.76112]
[1728569940704,6.64,137.69,137.63,0.12502]
[1728569941712,3.6352,137.68,137.65,3.6356]
[1728569941906,6.64,137.69,137.63,0.12502]
[1728569942513,27.92,137.68,137.63,0.12502]
[1728569942702,27.92,137.68,137.56,36.0142]
[1728569943909,3.6366,137.63,137.59,3.6372]
[1728569944108,3.68400879,137.63,137.59,3.6372]
[1728569944305,3.68400879,137.63,137.57,3.76282]
[1728569944306,3.6373,137.6,137.57,3.76282]
[1728569944809,32.95371462,137.63,137.57,0.12502]
[1728569945117,3.6377,137.58,137.57,0.12502]
[1728569945505,6.64,137.6,137.52,1.4455]
[1728569945713,27.92,137.57,137.46,2.78]
[1728569946013,8.097,137.56,137.47,3.6405]
[1728569946208,3.6392,137.52,137.46,2.7957]
[1728569946403,13.87482749,137.52,137.46,1.4455]
[1728569946605,10.23562749,137.52,137.46,1.4455]
[1728569947105,3.6399,137.5,137.46,5.0861]
[1728569947515,10.23562749,137.52,137.46,1.4455]
[1728569947713,3.59562749,137.52,137.48,3.6401]
[1728569947914,8.097,137.56,137.5,27.92]
[1728569948119,10.25561476,137.56,137.54,3.6387]
[1728569948322,6.64,137.56,137.5,27.92]
[1728569948620,0.12502,137.57,137.53,27.92]
[1728569948821,0.12502,137.57,137.56,3.6382]
[1728569949119,0.12502,137.57,137.53,27.92]
[1728569949320,0.12502,137.57,137.5,29.2762]
[1728569949719,0.12502,137.57,137.52,3.6392]
[1728569949913,0.12502,137.57,137.53,1.3504]
[1728569950419,0.12502,137.57,137.55,3.6382]
[1728569951520,0.12502,137.57,137.53,1.3504]
[1728569951715,3.76292,137.57,137.54,3.6387]
[1728569951917,0.12502,137.57,137.5,1.3562]
[1728569952217,27.92,137.54,137.45,0.12502]
[1728569952423,27.92,137.52,137.45,0.12502]
[1728569952721,3.6408,137.46,137.45,0.12502]
[1728569953114,3.6398,137.5,137.46,3.6406]
[1728569953421,3.6398,137.5,137.41,27.92]
[1728569953422,0.12502,137.51,137.45,27.92]
[1728569953813,0.12502,137.51,137.49,3.6399]
[1728569954017,0.12502,137.51,137.45,27.92]
[1728569954213,27.92,137.5,137.41,3.642]
[1728569954511,27.92,137.48,137.35,1.3404]
[1728569954711,27.92,137.46,137.38,3.6428]
[1728569954922,27.92,137.46,137.36,1.4443]
[1728569954923,27.92,137.43,137.36,1.4443]
[1728569955321,3.6424,137.4,137.36,5.0876]
[1728569955521,6.62,137.41,137.36,1.4443]
[1728569955716,31.57455887,137.43,137.36,1.4443]
[1728569955717,10.2621,137.42,137.39,3.76762]
[1728569955925,10.2621,137.42,137.39,0.12502]
[1728569956119,3.6421,137.42,137.39,0.12502]
[1728569956321,1.3505,137.45,137.39,0.12502]
[1728569956625,6.62,137.44,137.39,0.12502]
[1728569956839,3.6416,137.43,137.39,0.12502]
[1728569957022,4.91978427,137.45,137.39,0.12502]
[1728569957023,27.92,137.41,137.39,0.12502]
[1728569957222,27.92,137.41,137.33,0.12502]
[1728569957420,27.92,137.38,137.33,0.12502]
[1728569957622,26.91480427,137.45,137.33,0.12502]
[1728569957623,27.92,137.36,137.33,0.12502]
[1728569957818,10.27340881,137.35,137.33,0.12502]
[1728569958216,29.2776,137.38,137.33,0.12502]
[1728569958417,1.3576,137.38,137.33,0.12502]
[1728569958623,6.62,137.39,137.33,0.12502]
[1728569959522,3.6422,137.41,137.33,0.12502]
[1728569959825,10.2622,137.41,137.33,0.12502]
[1728569960125,10.2622,137.41,137.36,3.6432]
[1728569960327,34.54,137.41,137.33,0.12502]
[1728569960522,3.6427,137.39,137.33,0.12502]
[1728569960724,34.54,137.41,137.33,0.12502]
[1728569960923,34.54,137.41,137.35,3.6436]
[1728569960924,38.1823,137.41,137.35,3.6436]
[1728569961131,38.1823,137.41,137.33,0.12502]
[1728569961529,38.1823,137.41,137.37,3.6431]
[1728569961734,3.6425,137.4,137.37,3.6431]
[1728569963031,38.1822,137.41,137.33,0.12502]
[1728569963231,10.2622,137.41,137.33,6.74502]
[1728569963624,1.373,137.44,137.33,34.66502]
[1728569963828,6.62,137.43,137.33,34.66502]
[1728569964232,3.6422,137.41,137.33,34.66502]
[1728569964622,34.54,137.43,137.36,3.6435]
[1728569964824,3.6422,137.41,137.33,34.66502]
[1728569965030,34.54,137.43,137.33,0.12502]
[1728569965236,27.92,137.41,137.35,3.6436]
[1728569965433,3.6429,137.39,137.33,0.12502]
[1728569965626,27.92,137.41,137.33,0.12502]
[1728569965825,27.92,137.41,137.36,3.6433]
[1728569966126,27.92,137.41,137.33,0.12502]
[1728569966127,3.6426,137.4,137.33,0.12502]
[1728569966326,27.92,137.41,137.37,3.6431]
[1728569966534,27.92,137.41,137.33,0.12502]
[1728569966535,31.5623,137.41,137.33,0.12502]
[1728569966735,27.92,137.41,137.33,0.12502]
[1728569967234,3.6426,137.4,137.33,0.12502]
[1728569967732,3.6428,137.39,137.33,0.12502]
[1728569967930,27.92,137.41,137.33,0.12502]
[1728569968121,3.6434,137.37,137.33,0.12502]
[1728569968336,10.21582322,137.38,137.33,0.12502]
[1728569968628,27.92,137.34,137.33,0.12502]
[1728569968836,34.54,137.34,137.27,0.12502]
[1728569969329,6.62,137.34,137.27,0.12502]
[1728569969721,6.62,137.34,137.31,3.6446]
[1728569971037,6.62,137.34,137.32,3.6444]
[1728569971731,6.62,137.34,137.31,3.6448]
[1728569971928,6.62,137.36,137.27,28.04502]
[1728569972243,6.62,137.36,137.34,3.6439]
[1728569972534,8.003,137.37,137.29,27.92]
[1728569972827,6.62,137.37,137.29,27.92]
[1728569973232,6.62,137.37,137.34,3.644]
[1728569973538,1.49352,137.39,137.29,29.3338]
[1728569973539,8.11352,137.39,137.29,29.3338]
[1728569973737,8.11352,137.39,137.3,1.4283]
[1728569974238,8.11352,137.39,137.36,3.6432]
[1728569974440,11.75622,137.39,137.36,3.6432]
[1728569974630,8.11352,137.39,137.3,1.4283]
[1728569975135,11.75622,137.39,137.3,1.4283]
[1728569975429,8.11352,137.39,137.3,1.4283]
[1728569976038,8.11352,137.39,137.37,3.6431]
[1728569976238,8.11352,137.39,137.32,6.62]
[1728569976434,8.11352,137.39,137.33,1.3778]
[1728569976630,6.74502,137.39,137.36,3.6433]
[1728569977334,0.12502,137.39,137.38,3.6429]
[1728569978557,0.12502,137.39,137.35,3.6436]
[1728569978841,0.12502,137.39,137.33,1.3778]
[1728569979237,0.12502,137.39,137.37,3.643]
[1728569979445,0.12502,137.39,137.33,1.3778]
[1728569979927,0.12502,137.39,137.38,3.6429]
[1728569981433,0.12502,137.39,137.33,1.3778]
[1728569981836,0.12502,137.39,137.38,3.6429]
[1728569987246,0.12502,137.39,137.36,3.6434]
[1728569987439,0.12502,137.39,137.33,1.3778]
[1728569987440,3.58145269,137.38,137.33,1.3778]
[1728569988542,7.22455269,137.38,137.35,3.6436]
[1728569988839,7.22455269,137.38,137.3,8.0883]
[1728569988840,38.29768777,137.38,137.3,8.0883]
[1728569989044,27.92,137.33,137.28,1.4494]
[1728569989238,6.66,137.32,137.27,0.12502]
[1728569989443,27.92,137.31,137.27,0.12502]
[1728569989648,8.1001,137.32,137.27,0.12502]
[1728569989839,11.7448,137.32,137.29,3.6453]
[1728569990038,27.92,137.31,137.27,0.12502]
[1728569990243,3.65235587,137.3,137.27,0.12502]
[1728569990537,27.92,137.31,137.28,3.6454]
[1728569990938,6.66,137.31,137.29,3.6452]
[1728569992551,10.39451107,137.31,137.29,3.6452]
[1728569993849,14.03931107,137.31,137.29,3.6452]
[1728569994547,10.39451107,137.31,137.29,3.6452]
[1728569994747,38.31451107,137.31,137.27,0.12502]
[1728569994951,38.31451107,137.31,137.27,3.77072]
[1728569995655,38.31451107,137.31,137.27,0.12502]
[1728569995847,49.79,137.29,137.21,0.12502]
[1728569996152,27.92,137.24,137.21,0.12502]
[1728569996346,6.66,137.23,137.21,0.12502]
[1728569996552,6.66,137.23,137.2,1.53073251]
[1728569996945,31.63874999,137.24,137.2,1.53073251]
[1728569997343,6.66,137.23,137.2,1.53073251]
[1728569997543,3.6472,137.22,137.2,1.53073251]
[1728569997750,31.63874999,137.24,137.2,1.53073251]
[1728569998050,3.6475,137.21,137.2,1.53073251]
[1728569998744,3.71874999,137.24,137.2,1.53073251]
[1728569998948,6.66,137.22,137.2,1.53073251]
[1728569999141,10.28935677,137.21,137.2,1.53073251]
[1728569999346,10.3075,137.21,137.2,1.53073251]
[1728569999855,14.01199723,137.21,137.2,1.53073251]
[1728570000351,3.70449723,137.21,137.2,1.53073251]
[1728570000656,6.66,137.21,137.2,1.53073251]
[1728570000853,10.3075,137.21,137.2,1.53073251]
[1728570001149,6.66,137.22,137.2,1.53073251]
[1728570001450,10.3072,137.22,137.2,1.53073251]
[1728570001652,3.58084376,137.22,137.2,1.53073251]
[1728570001858,6.66,137.21,137.2,1.53073251]
[1728570002152,6.66,137.21,137.1,0.19]
[1728570002453,3.6488,137.16,137.12,3.6496]
[1728570002650,6.66,137.16,137.12,3.6496]
[1728570002848,6.66,137.16,137.1,0.19]
[1728570003154,3.6494,137.14,137.1,3.8403]
[1728570003458,6.66,137.16,137.1,0.19]
[1728570003757,3.65,137.12,137.1,0.19]
[1728570003955,6.66,137.11,137.1,0.19]
[1728570004755,14.0175153,137.11,137.1,0.19]
[1728570005151,27.92,137.12,137.1,0.19]
[1728570005455,10.29810978,137.11,137.1,0.19]
[1728570005653,6.66,137.11,137.1,0.19]
[1728570006362,10.34885203,137.11,137.1,0.19]
[1728570006954,6.66,137.11,137.1,0.19]
[1728570007354,6.66,137.11,137.1,3.8404]
[1728570007550,6.66,137.12,137.1,0.19]
[1728570008558,3.6501,137.11,137.1,0.19]
[1728570009759,10.3301,137.11,137.1,0.19]
[1728570009956,27.92,137.13,137.1,0.19]
[1728570010150,6.68,137.12,137.1,0.19]
[1728570010851,6.68,137.11,137.1,0.19]
[1728570012354,10.3301,137.11,137.1,0.19]
[1728570013861,6.68,137.11,137.1,0.19]
[1728570014064,6.78,137.13,137.1,0.19]
[1728570014562,6.78,137.13,137.12,3.6499]
[1728570014767,6.78,137.14,137.1,0.19]
[1728570015059,3.65161645,137.15,137.1,0.19]
[1728570015253,6.78,137.14,137.1,0.19]
[1728570015454,10.4295,137.14,137.1,0.19]
[1728570015650,27.92,137.13,137.1,0.19]
[1728570016455,3.6501,137.11,137.1,0.19]
[1728570016765,10.4301,137.11,137.1,0.19]
[1728570018462,3.6501,137.11,137.1,0.19]
[1728570018663,10.4301,137.11,137.1,0.19]
[1728570018960,3.6499,137.12,137.1,0.19]
[1728570019165,6.78,137.11,137.1,0.19]
[1728570019569,3.65161645,137.15,137.1,0.19]
[1728570019570,27.92,137.14,137.1,0.19]
[1728570019870,6.78,137.13,137.1,0.19]
[1728570020066,6.78,137.13,137.12,3.6497]
[1728570021463,6.78,137.13,137.1,0.19]
[1728570021767,27.92,137.12,137.09,0.12502]
[1728570021972,27.92,137.1,137.06,3.6513]
[1728570022170,27.92,137.1,137.05,1.4669]
[1728570022171,6.78,137.09,137.05,1.4669]
[1728570022362,27.92,137.07,137.03,0.12502]
[1728570022562,27.92,137.07,136.98,2.7102]
[1728570022563,27.92,137.05,136.98,2.7102]
[1728570022858,6.78,137.04,136.98,2.7102]
[1728570023059,27.92,137.05,136.98,2.7102]
[1728570023263,6.8,137.04,136.98,2.7102]
[1728570023466,34.72,137.04,137.0,3.6529]
[1728570024072,41.9569578,137.04,137.01,3.6528]
[1728570024273,41.9569578,137.04,136.98,2.7102]
[1728570024274,21.87,137.01,136.87,0.12518]
[1728570024462,27.92,136.94,136.87,0.12518]
[1728570024770,0.12502,136.97,136.87,0.12518]
[1728570025066,0.12502,136.97,136.88,27.92]
[1728570025259,0.12502,136.97,136.89,2.7513]
[1728570025771,0.12502,136.97,136.95,3.6542]
[1728570025970,0.12502,136.97,136.89,2.7513]
[1728570027166,0.12502,136.97,136.91,27.92]
[1728570027365,7.22,137.01,136.92,8.6159]
[1728570027565,7.22,137.01,136.92,1.3959]
[1728570027566,27.92,137.0,136.92,1.3959]
[1728570028163,7.22,137.01,136.92,1.3959]
[1728570028164,7.22,137.01,136.92,4.96276622]
[1728570028369,7.22,137.01,136.99,3.6531]
[1728570028575,7.22,137.01,136.92,4.96276622]
[1728570028576,27.92,137.02,136.92,4.96276622]
[1728570028875,0.12502,137.03,136.96,3.6541]
[1728570029067,0.12502,137.03,136.97,1.4751]
[1728570029471,0.12502,137.03,137.02,3.6525]
[1728570029866,0.12502,137.03,136.97,1.4751]
[1728570030569,0.12502,137.03,137.0,3.6528]
[1728570031272,0.12502,137.03,136.97,1.4751]
[1728570031469,0.12502,137.03,137.01,3.6526]
[1728570031675,0.12502,137.03,136.97,1.4751]
[1728570031871,0.12502,137.03,137.02,3.6525]
[1728570033078,35.14,137.07,137.04,3.652]
[1728570034077,35.14,137.07,137.06,3.6515]
[1728570034078,7.22,137.07,137.06,3.6515]
[1728570034375,7.22,137.07,136.99,1.375]
[1728570034376,35.26502,137.09,136.99,1.375]
[1728570034580,35.26502,137.09,137.05,3.6515]
[1728570034966,28.04502,137.09,137.05,3.6515]
[1728570035169,35.26502,137.09,137.05,3.6515]
[1728570035877,38.91572,137.09,137.05,3.6515]
[1728570037585,38.91572,137.09,137.03,3.6521]
[1728570037586,31.5712,137.07,137.03,3.6521]
[1728570037878,7.34502,137.09,136.99,1.375]
[1728570037879,27.92,137.04,136.99,1.375]
[1728570038381,27.92,137.02,136.97,1.60012]
[1728570039081,3.653,137.01,136.97,5.25372]
[1728570039383,27.92,137.02,136.97,1.60012]
[1728570041376,27.92,137.02,136.99,3.6531]
[1728570041570,27.92,137.02,136.97,1.60012]
[1728570042377,27.92,137.02,136.99,3.6531]
[1728570042585,21.87,136.99,136.85,0.12502]
[1728570042881,3.657,136.86,136.8,3.9582]
[1728570043073,27.92,136.84,136.8,0.3]
[1728570043270,27.92,136.82,136.73,0.12502]
[1728570043480,27.92,136.84,136.73,5.25063525]
[1728570043673,27.92,136.84,136.73,1.58812]
[1728570043874,27.92,136.84,136.74,3.67857451]
[1728570044072,27.92,136.84,136.73,1.58812]
[1728570044073,31.5773,136.84,136.77,3.6592]
[1728570044275,27.92,136.84,136.73,9.62812]
[1728570044477,8.04,136.86,136.73,9.62812]
[1728570044478,31.5779,136.82,136.76,3.6595]
[1728570044672,45.68,136.82,136.73,9.62812]
[1728570045082,45.68,136.82,136.76,3.6592]
[1728570045379,45.68,136.82,136.73,9.62812]
[1728570046481,0.12502,136.85,136.76,45.68]
[1728570046682,0.12502,136.85,136.78,45.68]
[1728570046881,0.12502,136.85,136.79,3.6586]
[1728570047087,0.12502,136.85,136.78,45.68]
[1728570047478,0.12502,136.85,136.79,3.6586]
[1728570047671,0.12502,136.85,136.78,45.68]
[1728570047872,0.12502,136.85,136.79,1.4508]
[1728570048182,0.12502,136.85,136.8,45.68]
[1728570048487,0.12502,136.85,136.81,3.6579]
[1728570048671,0.12502,136.85,136.8,45.68]
[1728570048872,0.12502,136.85,136.81,1.3841]
[1728570049685,0.12502,136.85,136.79,1.4508]
[1728570050182,0.12502,136.85,136.83,3.6575]
[1728570050578,0.12502,136.85,136.84,3.6573]
[1728570051590,0.12502,136.91,136.82,45.68]
[1728570051786,45.68,136.9,136.8,45.68]
[1728570051986,45.68,136.9,136.79,10.05582]
[1728570053085,0.12502,136.91,136.82,45.68]
[1728570053284,0.12502,136.91,136.83,9.958]
[1728570053486,3.78062,136.91,136.83,9.958]
[1728570053701,0.12502,136.91,136.83,9.958]
[1728570054005,0.12502,136.91,136.87,3.6564]
[1728570054197,0.12502,136.91,136.83,9.958]
[1728570054699,0.12502,136.91,136.88,3.6561]
[1728570054904,0.12502,136.91,136.85,45.68]